fUSD/lending_fUSD_20240630
["ID","MTS","AMOUNT","RATE_DAILY","PERIOD"]
[330697181,1719715840554,-500.0,0.00013698,3]
[330697183,1719715840566,-1660.26,0.00013698,3]
[330697185,1719715840576,-500.0,0.00013698,3]
[330697187,1719715840586,-500.0,0.00013698,3]
[330697189,1719715840596,-500.0,0.00013698,3]
[330697191,1719715840606,-500.0,0.00013698,3]
[330697193,1719715840619,-500.0,0.00013698,3]
[330697195,1719715840628,-500.0,0.00013698,3]
[330697197,1719715840638,-500.0,0.00013698,3]
[330697199,1719715840648,-500.0,0.00013698,3]
[330697201,1719715840657,-500.0,0.00013698,3]
[330697203,1719715840667,-500.0,0.00013698,3]
[330697205,1719715840677,-500.0,0.00013698,3]
[330697207,1719715840686,-500.0,0.00013698,3]
[330697209,1719715840696,-500.0,0.00013698,3]
[330697211,1719715840706,-500.0,0.00013698,3]
[330697213,1719715840716,-500.0,0.00013698,3]
[330697215,1719715840726,-500.0,0.00013698,3]
[330697217,1719715840735,-500.0,0.00013698,3]
[330697219,1719715840746,-500.0,0.00013698,3]
[330697221,1719715840757,-508.82056571,0.00013698,3]
[330697223,1719715840767,-500.0,0.00013698,3]
[330697225,1719715840779,-500.0,0.00013698,3]
[330697227,1719715840788,-500.0,0.00013698,3]
[330697229,1719715840798,-609.86,0.00013698,3]
[330697231,1719715840811,-525.93,0.00013698,3]
[330697233,1719715840821,-575.37,0.00013698,3]
[330697236,1719715840830,-500.0,0.00013698,3]
[330697238,1719715840841,-500.0,0.00013698,3]
[330697240,1719715840851,-500.0,0.00013698,3]
[330697241,1719715840861,-500.0,0.00013698,3]
[330697244,1719715840870,-500.0,0.00013698,3]
[330697246,1719715840880,-500.0,0.00013698,3]
[330697248,1719715840890,-500.0,0.00013698,3]
[330697250,1719715840899,-500.0,0.00013698,3]
[330697251,1719715840909,-503.28222861,0.00013698,3]
[330697253,1719715840918,-1032.93,0.00013698,3]
[330697256,1719715840928,-500.0,0.00013698,3]
[330697257,1719715840938,-500.0,0.00013698,3]
[330697259,1719715840947,-500.0,0.00013698,3]
[330697261,1719715840957,-500.0,0.00013698,3]
[330697263,1719715840967,-500.0,0.00013698,3]
[330697265,1719715840976,-500.0,0.00013698,3]
[330697267,1719715840986,-500.0,0.00013698,3]
[330697270,1719715840996,-500.0,0.00013698,3]
[330697272,1719715841006,-515.85307451,0.00013698,3]
[330697274,1719715841015,-500.0,0.00013698,3]
[330697276,1719715841025,-500.0,0.00013698,3]
[330697278,1719715841035,-500.0,0.00013698,3]
[330697280,1719715841049,-500.0,0.00013698,3]
[330697282,1719715841060,-500.0,0.00013698,3]
[330697284,1719715841071,-500.0,0.00013698,3]
[330697286,1719715841081,-500.0,0.00013698,3]
[330697287,1719715841090,-500.0,0.00013698,3]
[330697288,1719715841100,-500.0,0.00013698,3]
[330697289,1719715841110,-500.0,0.00013698,3]
[330697290,1719715841121,-500.0,0.00013698,3]
[330697291,1719715841131,-500.0,0.00013698,3]
[330697292,1719715841141,-500.0,0.00013698,3]
[330697293,1719715841150,-500.0,0.00013698,3]
[330697294,1719715841160,-390.0,0.00013698,3]
[330697296,1719715841170,-500.0,0.00013698,3]
[330697298,1719715841179,-500.0,0.00013698,3]
[330697300,1719715841188,-500.0,0.00013698,3]
[330697302,1719715841197,-907.61,0.00013698,3]
[330697304,1719715841206,-500.0,0.00013698,3]
[330697306,1719715841216,-503.73,0.00013698,3]
[330697308,1719715841225,-500.0,0.00013698,3]
[330697310,1719715841234,-500.0,0.00013698,3]
[330697312,1719715841244,-500.0,0.00013698,3]
[330697314,1719715841253,-500.0,0.00013698,3]
[330697316,1719715841262,-500.0,0.00013698,3]
[330697318,1719715841273,-500.0,0.00013698,3]
[330697320,1719715841281,-500.0,0.00013698,3]
[330697322,1719715841291,-500.0,0.00013698,3]
[330697324,1719715841300,-500.0,0.00013698,3]
[330697326,1719715841312,-500.0,0.00013698,3]
[330697328,1719715841322,-500.0,0.00013698,3]
[330697330,1719715841331,-500.0,0.00013698,3]
[330697332,1719715841341,-500.0,0.00013698,3]
[330697334,1719715841351,-500.0,0.00013698,3]
[330697336,1719715841361,-919.71,0.00013698,3]
[330697338,1719715841371,-500.0,0.00013698,3]
[330697340,1719715841380,-645.11884574,0.00013698,3]
[330697342,1719715841389,-500.0,0.00013698,3]
[330697344,1719715841398,-609.42,0.00013698,3]
[330697346,1719715841407,-1039.38694102,0.00013698,5]
[330697348,1719715841416,-509.39676432,0.00013698,3]
[330697350,1719715841425,-500.0,0.00013698,3]
[330697352,1719715841434,-507.56555857,0.00013698,3]
[330697354,1719715841444,-561.12,0.00013698,3]
[330697356,1719715841453,-500.0,0.00013698,3]
[330697358,1719715841462,-500.0,0.00013698,3]
[330697360,1719715841471,-249.338706,0.00013698,2]
[330697362,1719715841480,-500.0,0.00013698,3]
[330697364,1719715841489,-500.0,0.00013698,3]
[330697366,1719715841499,-500.0,0.00013698,3]
[330697368,1719715841508,-500.0,0.00013698,3]
[330697370,1719715841517,-151.0,0.00013698,2]
[330697372,1719715841526,-500.0,0.00013698,3]
[330697374,1719715841535,-500.0,0.00013698,3]
[330697376,1719715841544,-522.41221366,0.00013698,3]
[330697378,1719715841555,-500.0,0.00013698,3]
[330697380,1719715841569,-500.0,0.00013698,3]
[330697382,1719715841579,-500.0,0.00013698,3]
[330697384,1719715841588,-500.0,0.00013698,3]
[330697386,1719715841598,-500.0,0.00013698,3]
[330697388,1719715841607,-500.0,0.00013698,3]
[330697390,1719715841617,-500.0,0.00013698,3]
[330697392,1719715841627,-500.0,0.00013698,3]
[330697394,1719715841636,-500.0,0.00013698,3]
[330697396,1719715841646,-500.0,0.00013698,3]
[330697398,1719715841655,-500.0,0.00013698,3]
[330697400,1719715841665,-500.0,0.00013698,3]
[330697402,1719715841674,-155.73,0.00013698,3]
[330697404,1719715841684,-500.0,0.00013698,3]
[330697406,1719715841694,-503.45053838,0.00013698,3]
[330697408,1719715841702,-500.0,0.00013698,3]
[330697410,1719715841712,-500.0,0.00013698,3]
[330697411,1719715841721,-500.0,0.00013698,3]
[330697413,1719715841730,-590.55809788,0.00013698,3]
[330697414,1719715841738,-648.03,0.00013698,3]
[330697416,1719715841748,-500.0,0.00013698,3]
[330697417,1719715841757,-151.0,0.00013698,2]
[330697419,1719715841766,-500.0,0.00013698,3]
[330697420,1719715841775,-524.56,0.00013698,3]
[330697422,1719715841785,-505.46566356,0.00013698,3]
[330697423,1719715841794,-507.74394218,0.00013698,3]
[330697425,1719715841803,-506.92978992,0.00013698,3]
[330697426,1719715841814,-500.0,0.00013698,3]
[330697428,1719715841824,-500.0,0.00013698,3]
[330697429,1719715841833,-500.0,0.00013698,3]
[330697431,1719715841842,-500.0,0.00013698,3]
[330697433,1719715841853,-500.0,0.00013698,3]
[330697434,1719715841862,-509.83881275,0.00013698,3]
[330697436,1719715841872,-500.0,0.00013698,3]
[330697437,1719715841881,-500.0,0.00013698,3]
[330697439,1719715841891,-500.0,0.00013698,3]
[330697440,1719715841901,-500.0,0.00013698,3]
[330697442,1719715841910,-500.0,0.00013698,3]
[330697443,1719715841919,-500.0,0.00013698,3]
[330697445,1719715841928,-500.0,0.00013698,3]
[330697447,1719715841938,-500.0,0.00013698,3]
[330697448,1719715841947,-500.0,0.00013698,3]
[330697450,1719715841956,-508.11019781,0.00013698,3]
[330697452,1719715841966,-665.61,0.00013698,3]
[330697453,1719715841975,-500.0,0.00013698,3]
[330697455,1719715841984,-595.24,0.00013698,3]
[330697457,1719715841994,-500.0,0.00013698,3]
[330697458,1719715842003,-500.0,0.00013698,3]
[330697460,1719715842013,-500.0,0.00013698,3]
[330697462,1719715842022,-500.0,0.00013698,3]
[330697463,1719715842032,-490.0,0.00013698,3]
[330697465,1719715842046,-506.67598785,0.00013698,3]
[330697467,1719715842056,-500.0,0.00013698,3]
[330697468,1719715842065,-500.0,0.00013698,3]
[330697470,1719715842075,-510.10148939,0.00013698,3]
[330697471,1719715842085,-500.0,0.00013698,3]
[330697473,1719715842094,-500.0,0.00013698,3]
[330697475,1719715842104,-500.0,0.00013698,3]
[330697477,1719715842116,-500.0,0.00013698,3]
[330697478,1719715842126,-500.0,0.00013698,3]
[330697480,1719715842136,-500.0,0.00013698,3]
[330697482,1719715842145,-500.0,0.00013698,3]
[330697483,1719715842154,-500.0,0.00013698,3]
[330697485,1719715842164,-500.0,0.00013698,3]
[330697487,1719715842174,-516.522216,0.00013698,3]
[330697488,1719715842183,-500.0,0.00013698,3]
[330697490,1719715842192,-500.0,0.00013698,3]
[330697491,1719715842202,-500.0,0.00013698,3]
[330697493,1719715842211,-500.0,0.00013698,3]
[330697495,1719715842220,-508.62964897,0.00013698,3]
[330697496,1719715842230,-500.0,0.00013698,3]
[330697498,1719715842239,-505.23961009,0.00013698,3]
[330697500,1719715842247,-535.24,0.00013698,3]
[330697501,1719715842256,-207.15016113,0.00013698,3]
[330697503,1719715842266,-500.0,0.00013698,3]
[330697505,1719715842275,-500.0,0.00013698,3]
[330697506,1719715842284,-1707.57,0.00013698,3]
[330697508,1719715842293,-500.0,0.00013698,3]
[330697509,1719715842303,-500.0,0.00013698,3]
[330697511,1719715842315,-500.0,0.00013698,3]
[330697513,1719715842324,-563.99890959,0.00013698,3]
[330697514,1719715842333,-500.0,0.00013698,3]
[330697516,1719715842342,-500.0,0.00013698,3]
[330697518,1719715842351,-500.0,0.00013698,3]
[330697519,1719715842363,-500.0,0.00013698,3]
[330697521,1719715842373,-1194.29,0.00013698,3]
[330697523,1719715842383,-1315.37,0.00013698,3]
[330697524,1719715842392,-500.0,0.00013698,3]
[330697526,1719715842401,-862.38,0.00013698,3]
[330697528,1719715842411,-500.0,0.00013698,3]
[330697529,1719715842421,-500.0,0.00013698,3]
[330697531,1719715842430,-500.0,0.00013698,3]
[330697533,1719715842439,-500.0,0.00013698,3]
[330697534,1719715842448,-500.0,0.00013698,3]
[330697536,1719715842457,-775.65,0.00013698,3]
[330697537,1719715842466,-500.0,0.00013698,3]
[330697538,1719715842475,-500.0,0.00013698,3]
[330697540,1719715842484,-506.02403045,0.00013698,3]
[330697541,1719715842493,-500.0,0.00013698,3]
[330697542,1719715842503,-500.0,0.00013698,3]
[330697544,1719715842512,-500.0,0.00013698,3]
[330697545,1719715842521,-500.0,0.00013698,3]
[330697547,1719715842531,-2017.06,0.00013698,3]
[330697548,1719715842540,-500.0,0.00013698,3]
[330697549,1719715842549,-500.0,0.00013698,3]
[330697551,1719715842559,-500.0,0.00013698,3]
[330697552,1719715842568,-500.0,0.00013698,3]
[330697554,1719715842577,-206.53234184,0.00013698,3]
[330697555,1719715842586,-500.0,0.00013698,3]
[330697557,1719715842595,-1155.28,0.00013698,3]
[330697559,1719715842604,-500.0,0.00013698,3]
[330697561,1719715842613,-500.0,0.00013698,3]
[330697563,1719715842622,-500.0,0.00013698,3]
[330697565,1719715842632,-439.40678658,0.00013698,3]
[330697566,1719715842640,-500.0,0.00013698,3]
[330697567,1719715842649,-500.0,0.00013698,3]
[330697568,1719715842658,-500.0,0.00013698,3]
[330697569,1719715842667,-500.0,0.00013698,3]
[330697570,1719715842676,-500.0,0.00013698,3]
[330697571,1719715842685,-500.0,0.00013698,3]
[330697572,1719715842693,-500.0,0.00013698,3]
[330697573,1719715842702,-3847.3,0.00013698,3]
[330697574,1719715842711,-500.0,0.00013698,3]
[330697575,1719715842721,-500.0,0.00013698,3]
[330697576,1719715842730,-204.8147569,0.00013698,3]
[330697577,1719715842739,-500.0,0.00013698,3]
[330697578,1719715842748,-501.09,0.00013698,3]
[330697579,1719715842757,-500.0,0.00013698,3]
[330697580,1719715842766,-500.0,0.00013698,3]
[330697581,1719715842775,-500.0,0.00013698,3]
[330697582,1719715842784,-151.0,0.00013698,2]
[330697583,1719715842792,-509.04725825,0.00013698,3]
[330697584,1719715842802,-151.0,0.00013698,2]
[330697586,1719715842811,-1981.14,0.00013698,3]
[330697587,1719715842820,-500.0,0.00013698,3]
[330697590,1719715842830,-500.0,0.00013698,3]
[330697591,1719715842839,-500.0,0.00013698,2]
[330697593,1719715842848,-500.0,0.00013698,3]
[330697595,1719715842857,-670.12,0.00013698,3]
[330697597,1719715842866,-561.32,0.00013698,3]
[330697600,1719715842875,-252.13028679,0.00013698,3]
[330697601,1719715842885,-500.0,0.00013698,3]
[330697603,1719715842895,-500.0,0.00013698,3]
[330697606,1719715842905,-537.58153424,0.00013698,3]
[330697607,1719715842914,-500.0,0.00013698,3]
[330697610,1719715842923,-1322.8,0.00013698,3]
[330697611,1719715842932,-500.0,0.00013698,3]
[330697614,1719715842942,-757.5,0.00013698,3]
[330697627,1719715843042,-500.0,0.00013698,3]
[330697631,1719715843101,-500.0,0.00013698,3]
[330697633,1719715843110,-500.0,0.00013698,3]
[330697635,1719715843122,-500.0,0.00013698,3]
[330697637,1719715843132,-500.0,0.00013698,3]
[330697639,1719715843142,-579.95,0.00013698,3]
[330697641,1719715843151,-500.0,0.00013698,3]
[330697643,1719715843160,-500.0,0.00013698,3]
[330697645,1719715843169,-1006.07,0.00013698,3]
[330697647,1719715843180,-500.0,0.00013698,3]
[330697649,1719715843189,-500.0,0.00013698,3]
[330697651,1719715843198,-500.0,0.00013698,3]
[330697655,1719715843208,-506.47558522,0.00013698,3]
[330697659,1719715843217,-500.0,0.00013698,3]
[330697662,1719715843226,-508.60408629,0.00013698,3]
[330697665,1719715843236,-500.0,0.00013698,3]
[330697668,1719715843245,-500.0,0.00013698,3]
[330697670,1719715843254,-500.0,0.00013698,3]
[330697671,1719715843263,-500.0,0.00013698,3]
[330697672,1719715843272,-500.0,0.00013698,3]
[330697673,1719715843281,-500.0,0.00013698,3]
[330697674,1719715843291,-1187.56,0.00013698,3]
[330697675,1719715843300,-500.0,0.00013698,3]
[330697676,1719715843312,-633.84,0.00013698,3]
[330697677,1719715843321,-500.0,0.00013698,3]
[330697678,1719715843331,-505.72958243,0.00013698,3]
[330697679,1719715843340,-500.0,0.00013698,3]
[330697680,1719715843350,-1341.8,0.00013698,3]
[330697681,1719715843360,-506.2271393,0.00013698,3]
[330697682,1719715843369,-500.0,0.00013698,3]
[330697683,1719715843378,-500.0,0.00013698,3]
[330697684,1719715843388,-500.0,0.00013698,3]
[330697685,1719715843398,-500.0,0.00013698,3]
[330697686,1719715843407,-500.0,0.00013698,3]
[330697687,1719715843417,-505.60437688,0.00013698,3]
[330697688,1719715843426,-500.0,0.00013698,3]
[330697689,1719715843436,-500.0,0.00013698,3]
[330697690,1719715843445,-552.84,0.00013698,3]
[330697691,1719715843455,-579.77,0.00013698,3]
[330697692,1719715843464,-500.0,0.00013698,3]
[330697693,1719715843474,-508.41593024,0.00013698,3]
[330697694,1719715843484,-506.40497324,0.00013698,3]
[330697695,1719715843494,-500.0,0.00013698,3]
[330697696,1719715843503,-603.84,0.00013698,3]
[330697697,1719715843512,-500.0,0.00013698,3]
[330697698,1719715843521,-500.0,0.00013698,3]
[330697699,1719715843531,-500.0,0.00013698,3]
[330697700,1719715843540,-500.0,0.00013698,3]
[330697702,1719715843550,-965.88,0.00013698,3]
[330697704,1719715843562,-249.25460651,0.00013698,3]
[330697705,1719715843572,-500.0,0.00013698,3]
[330697706,1719715843582,-500.0,0.00013698,3]
[330697707,1719715843592,-698.45,0.00013698,3]
[330697708,1719715843602,-500.0,0.00013698,3]
[330697709,1719715843612,-500.0,0.00013698,3]
[330697710,1719715843623,-500.0,0.00013698,3]
[330697711,1719715843632,-500.0,0.00013698,3]
[330697712,1719715843643,-516.27,0.00013698,3]
[330697713,1719715843652,-642.26,0.00013698,3]
[330697714,1719715843661,-500.0,0.00013698,3]
[330697715,1719715843671,-500.0,0.00013698,3]
[330697717,1719715843681,-500.0,0.00013698,3]
[330697718,1719715843690,-500.0,0.00013698,3]
[330697719,1719715843700,-500.0,0.00013698,3]
[330697720,1719715843710,-185.62307607,0.00013698,3]
[330697721,1719715843720,-557.63298661,0.00013698,3]
[330697722,1719715843728,-500.0,0.00013698,3]
[330697723,1719715843738,-500.0,0.00013698,3]
[330697724,1719715843748,-500.0,0.00013698,3]
[330697725,1719715843758,-675.86,0.00013698,3]
[330697726,1719715843768,-500.0,0.00013698,3]
[330697727,1719715843778,-892.41,0.00013698,3]
[330697728,1719715843791,-708.05,0.00013698,3]
[330697730,1719715843801,-763.84,0.00013698,3]
[330697732,1719715843816,-500.0,0.00013698,3]
[330697734,1719715843827,-523.74,0.00013698,3]
[330697736,1719715843837,-500.0,0.00013698,3]
[330697738,1719715843848,-713.73,0.00013698,3]
[330697740,1719715843859,-624.5,0.00013698,3]
[330697742,1719715843870,-500.0,0.00013698,3]
[330697744,1719715843881,-500.0,0.00013698,3]
[330697745,1719715843892,-151.0,0.00013698,2]
[330697746,1719715843903,-151.0,0.00013698,2]
[330697747,1719715843914,-500.0,0.00013698,3]
[330697748,1719715843925,-510.56360457,0.00013698,3]
[330697749,1719715843937,-325.37077854,0.00013698,3]
[330697750,1719715843949,-500.0,0.00013698,3]
[330697751,1719715843960,-3175.52,0.00013698,3]
[330697752,1719715843971,-500.0,0.00013698,3]
[330697753,1719715843982,-500.0,0.00013698,3]
[330697754,1719715843993,-500.0,0.00013698,3]
[330697755,1719715844004,-500.0,0.00013698,3]
[330697756,1719715844015,-500.0,0.00013698,3]
[330697757,1719715844026,-987.08,0.00013698,3]
[330697758,1719715844042,-500.0,0.00013698,3]
[330697759,1719715844053,-500.0,0.00013698,3]
[330697760,1719715844074,-557.68996582,0.00013698,3]
[330697761,1719715844086,-500.0,0.00013698,3]
[330697762,1719715844096,-500.0,0.00013698,3]
[330697763,1719715844107,-1368.96,0.00013698,3]
[330697764,1719715844118,-500.0,0.00013698,3]
[330697765,1719715844130,-500.0,0.00013698,3]
[330697766,1719715844140,-500.0,0.00013698,3]
[330697767,1719715844149,-500.0,0.00013698,3]
[330697768,1719715844159,-1311.38,0.00013698,3]
[330697769,1719715844169,-500.0,0.00013698,3]
[330697770,1719715844179,-500.0,0.00013698,3]
[330697771,1719715844188,-500.0,0.00013698,3]
[330697772,1719715844198,-907.53,0.00013698,3]
[330697773,1719715844209,-500.0,0.00013698,3]
[330697774,1719715844220,-1080.55,0.00013698,3]
[330697775,1719715844231,-507.05,0.00013698,3]
[330697776,1719715844241,-1968.8,0.00013698,3]
[330697777,1719715844252,-500.0,0.00013698,3]
[330697778,1719715844262,-654.89,0.00013698,3]
[330697779,1719715844271,-1471.1,0.00013698,3]
[330697780,1719715844281,-1161.94,0.00013698,3]
[330697781,1719715844292,-500.0,0.00013698,3]
[330697782,1719715844301,-500.0,0.00013698,3]
[330697783,1719715844316,-500.0,0.00013698,3]
[330697784,1719715844325,-864.95,0.00013698,3]
[330697785,1719715844335,-500.0,0.00013698,3]
[330697786,1719715844344,-500.0,0.00013698,3]
[330697788,1719715844353,-151.0,0.00013698,2]
[330697790,1719715844363,-1106.72,0.00013698,3]
[330697792,1719715844372,-500.0,0.00013698,3]
[330697793,1719715844381,-906.17,0.00013698,3]
[330697795,1719715844391,-500.0,0.00013698,3]
[330697797,1719715844401,-558.57,0.00013698,3]
[330697798,1719715844411,-500.0,0.00013698,3]
[330697799,1719715844420,-500.0,0.00013698,3]
[330697800,1719715844430,-324.72986809,0.00013698,2]
[330697801,1719715844439,-506.28362269,0.00013698,3]
[330697802,1719715844450,-1661.54,0.00013699,2]
[330697803,1719715844459,-151.0,0.00013699,2]
[330697804,1719715844469,-10000.0,0.00013699,2]
[330697805,1719715844478,-3586.26,0.00013699,2]
[330697806,1719715844488,-200.0,0.00013699,2]
[330697807,1719715844497,-203.51161649,0.000137,2]
[330697808,1719715844507,-273.5122274,0.000137,2]
[330697809,1719715844516,-653.67606934,0.000137,2]
[330697810,1719715844526,-528.94137295,0.00013704,2]
[330697811,1719715844549,-124.73469638,0.00013704,2]
[330697812,1719715844562,-500.0,0.00013708,2]
[330697813,1719715844572,-653.67606933,0.00013708,2]
[330697814,1719715844581,-12760.47924032,0.00013736,2]
[330697815,1719715844590,-219.467641,0.00013736,2]
[330697816,1719715844599,-241.36276646,0.00013755,2]
[330697817,1719715844608,-529.19587376,0.00013759,2]
[330697818,1719715844619,-755.89396225,0.00013759,2]
[330697819,1719715844628,-151.0,0.0001379,2]
[330697820,1719715844638,-151.0,0.0001379,2]
[330697821,1719715844647,-13555.21091275,0.00013799,2]
[330697822,1719715844656,-211.677772,0.00013799,2]
[330697823,1719715844667,-250000.0,0.000138,2]
[330697824,1719715844676,-135465.0580409,0.000138,3]
[330697825,1719715844687,-173.36304255,0.000138,3]
[330697826,1719715844698,-151.0,0.000138,2]
[330697827,1719715844708,-159.170681,0.000138,2]
[330697828,1719715844719,-155.942643,0.000138,2]
[330697829,1719715844730,-237.746955,0.000138,2]
[330697830,1719715844739,-151.0,0.000138,2]
[330697831,1719715844748,-151.0,0.000138,2]
[330697832,1719715844758,-151.0,0.000138,2]
[330697833,1719715844767,-151.0,0.000138,2]
[330697834,1719715844777,-151.0,0.000138,2]
[330697835,1719715844786,-165.247489,0.000138,2]
[330697836,1719715844795,-151.0,0.000138,2]
[330697837,1719715844804,-151.0,0.000138,2]
[330697838,1719715844817,-209.70110189,0.00013807,2]
[330697839,1719715844827,-5917.61448534,0.00013807,2]
[330697840,1719715844836,-500.0,0.00013807,2]
[330697841,1719715844846,-587.33,0.00013808,3]
[330697842,1719715844855,-730.63,0.00013808,3]
[330697843,1719715844865,-937.17,0.00013808,3]
[330697844,1719715844874,-2172.53,0.00013808,3]
[330697845,1719715844884,-8098.74,0.00013808,3]
[330697846,1719715844893,-500.0,0.00013808,3]
[330697847,1719715844903,-1705.68,0.00013808,3]
[330697848,1719715844913,-621.2,0.00013808,3]
[330697849,1719715844923,-786.94,0.00013808,3]
[330697850,1719715844932,-500.0,0.00013808,3]
[330697851,1719715844942,-575.12,0.00013808,3]
[330697852,1719715844951,-633.74,0.00013808,3]
[330697853,1719715844960,-500.0,0.00013808,3]
[330697854,1719715844970,-500.0,0.00013808,3]
[330697855,1719715844979,-500.0,0.00013808,3]
[330697856,1719715844989,-1034.52,0.00013808,3]
[330697857,1719715844998,-768.2,0.00013808,3]
[330697858,1719715845008,-500.0,0.00013808,3]
[330697859,1719715845017,-614.71,0.00013808,3]
[330697860,1719715845026,-500.0,0.00013808,3]
[330697861,1719715845037,-500.0,0.00013808,3]
[330697862,1719715845047,-500.0,0.00013808,3]
[330697863,1719715845062,-500.0,0.00013808,3]
[330697864,1719715845071,-500.0,0.00013808,3]
[330697865,1719715845080,-500.0,0.00013808,3]
[330697866,1719715845094,-500.0,0.00013808,3]
[330697867,1719715845104,-731.6,0.00013808,3]
[330697868,1719715845114,-500.0,0.00013808,3]
[330697869,1719715845124,-500.0,0.00013808,3]
[330697870,1719715845136,-500.0,0.00013808,3]
[330697871,1719715845146,-500.0,0.00013808,3]
[330697872,1719715845156,-500.0,0.00013808,3]
[330697873,1719715845166,-500.0,0.00013808,3]
[330697874,1719715845175,-560.3,0.00013808,3]
[330697875,1719715845184,-541.58832084,0.00013808,3]
[330697876,1719715845195,-500.0,0.00013808,3]
[330697877,1719715845204,-362.13450624,0.00013808,3]
[330697878,1719715845214,-500.0,0.00013808,3]
[330697879,1719715845224,-500.0,0.00013808,3]
[330697880,1719715845233,-500.0,0.00013808,3]
[330697881,1719715845243,-500.0,0.00013808,3]
[330697882,1719715845252,-500.0,0.00013808,3]
[330697883,1719715845262,-159.32309766,0.00013808,3]
[330697884,1719715845271,-500.0,0.00013808,3]
[330697885,1719715845281,-280.51593835,0.00013808,3]
[330697886,1719715845290,-500.0,0.00013808,3]
[330697887,1719715845300,-500.0,0.00013808,3]
[330697888,1719715845313,-670.04,0.00013808,3]
[330697889,1719715845322,-500.0,0.00013808,3]
[330697890,1719715845332,-500.0,0.00013808,3]
[330697891,1719715845341,-500.0,0.00013808,3]
[330697892,1719715845350,-500.0,0.00013808,3]
[330697893,1719715845359,-500.0,0.00013808,3]
[330697894,1719715845369,-1084.67,0.00013808,3]
[330697895,1719715845379,-670.53,0.00013808,3]
[330697896,1719715845388,-500.0,0.00013808,3]
[330697897,1719715845397,-1047.34,0.00013808,3]
[330697898,1719715845407,-688.83,0.00013808,3]
[330697899,1719715845418,-500.0,0.00013808,3]
[330697900,1719715845427,-500.0,0.00013808,3]
[330697901,1719715845437,-874.39,0.00013808,3]
[330697902,1719715845446,-500.0,0.00013808,3]
[330697903,1719715845456,-500.0,0.00013808,3]
[330697904,1719715845466,-1277.3,0.00013808,3]
[330697905,1719715845475,-989.37,0.00013808,3]
[330697906,1719715845485,-500.0,0.00013808,3]
[330697907,1719715845495,-500.0,0.00013808,3]
[330697908,1719715845505,-500.0,0.00013808,3]
[330697909,1719715845514,-500.0,0.00013808,3]
[330697910,1719715845523,-500.0,0.00013808,3]
[330697911,1719715845533,-500.0,0.00013808,3]
[330697912,1719715845542,-500.0,0.00013808,3]
[330697913,1719715845552,-500.0,0.00013808,3]
[330697914,1719715845564,-639.49,0.00013808,3]
[330697915,1719715845573,-500.0,0.00013808,3]
[330697916,1719715845583,-749.55,0.00013808,3]
[330697917,1719715845592,-500.0,0.00013808,3]
[330697922,1719715845886,-500.0,0.00013808,3]